bitfinex-derivatives/quotes_SOLF0:USTF0_20241230
["timestamp","ask_amount","ask_price","bid_price","bid_amount"]
[1735575633308,12.23724811,188.17,188.09,2.6634]
[1735575633707,12.23724811,188.2,188.06,12.23724811]
[1735575633906,3.48,188.19,188.06,12.23724811]
[1735575634611,3.48,188.19,188.08,2.6635]
[1735575635508,59.00650304,188.32,188.13,2.6628]
[1735575635714,12.23724811,188.23,188.09,15.67724811]
[1735575635911,3.44,188.22,188.12,12.23724811]
[1735575636112,3.44,188.22,188.15,2.6626]
[1735575636910,3.44,188.22,188.14,2.6627]
[1735575637616,3.44,188.22,188.15,2.6625]
[1735575638817,3.44,188.22,188.12,2.663]
[1735575639009,12.23724811,188.2,188.1,3.1035]
[1735575639708,12.23724811,188.2,188.1,5.7667]
[1735575640305,12.23724811,188.2,188.06,12.23724811]
[1735575640614,12.23724811,188.17,188.06,12.23724811]
[1735575641013,15.67724811,188.17,188.09,2.6634]
[1735575641520,15.67724811,188.17,188.06,12.23724811]
[1735575641821,15.67724811,188.17,188.05,3.0718]
[1735575642713,15.67724811,188.17,188.06,2.6637]
[1735575642919,2.9599,188.18,188.07,12.23724811]
[1735575643222,15.67724811,188.2,188.13,2.6627]
[1735575645918,15.67724811,188.2,188.08,3.44]
[1735575646115,3.44,188.2,188.15,2.6625]
[1735575646926,3.44,188.2,188.14,2.6627]
[1735575647116,3.44,188.2,188.1,12.23724811]
[1735575648223,3.44,188.2,188.16,2.6624]
[1735575648422,3.44,188.2,188.1,12.23724811]
[1735575648624,3.44,188.2,188.13,2.6628]
[1735575648819,3.44,188.2,188.1,12.23724811]
[1735575649017,15.67724811,188.2,188.12,2.663]
[1735575649221,15.67724811,188.2,188.09,3.44]
[1735575649621,15.67724811,188.2,188.13,2.6628]
[1735575652532,12.23724811,188.2,188.09,3.44]
[1735575652918,1.5798,188.22,188.1,12.23724811]
[1735575654234,1.5798,188.22,188.16,2.6623]
[1735575655130,1.5798,188.22,188.1,12.23724811]
[1735575655324,1.5798,188.22,188.17,2.6622]
[1735575656531,12.23724811,188.2,188.1,3.44]
[1735575656735,3.44,188.19,188.08,7.24338065]
[1735575657133,3.44,188.19,188.14,2.6626]
[1735575657330,3.44,188.19,188.09,3.44]
[1735575657636,3.44,188.19,188.14,2.6626]
[1735575657837,3.44,188.19,188.09,3.44]
[1735575658440,3.44,188.19,188.15,2.6625]
[1735575659238,1.5798,188.22,188.16,2.6623]
[1735575659429,1.5798,188.22,188.1,12.23724811]
[1735575659628,12.23724811,188.23,188.1,12.23724811]
[1735575660340,12.23724811,188.23,188.13,12.23724811]
[1735575660537,12.23724811,188.26,188.14,4.9794]
[1735575660833,12.23724811,188.26,188.14,6.5752]
[1735575661238,12.23724811,188.29,188.24,2.6612]
[1735575661437,12.23724811,188.29,188.16,12.23724811]
[1735575661632,15.67724811,188.29,188.15,1.5687]
[1735575661827,15.67724811,188.29,188.2,2.6618]
[1735575663737,15.67724811,188.29,188.15,1.5687]
[1735575663738,12.23724811,188.26,188.15,1.5687]
[1735575664637,12.23724811,188.26,188.14,18.81244811]
[1735575664838,12.23724811,188.26,188.16,2.6624]
[1735575665038,3.176,188.25,188.16,2.6624]
[1735575665240,3.46,188.24,188.16,2.6624]
[1735575665542,3.46,188.24,188.14,6.5752]
[1735575665841,3.46,188.24,188.16,2.6624]
[1735575666044,12.23724811,188.23,188.12,3.46]
[1735575666345,12.23724811,188.23,188.17,2.6622]
[1735575666545,12.23724811,188.23,188.12,3.46]
[1735575666742,12.23724811,188.23,188.1,13.77404811]
[1735575666946,12.23724811,188.23,188.15,2.6625]
[1735575667649,12.23724811,188.23,188.13,2.6628]
[1735575667843,12.23724811,188.2,188.08,6.5427]
[1735575668644,12.23724811,188.2,188.1,12.23724811]
[1735575670243,12.23724811,188.2,188.13,2.6629]
[1735575670443,12.23724811,188.2,188.1,12.23724811]
[1735575671448,12.23724811,188.23,188.1,12.23724811]
[1735575672044,15.69724811,188.23,188.16,2.6623]
[1735575672244,15.69724811,188.23,188.11,3.46]
[1735575672645,15.69724811,188.23,188.13,2.6629]
[1735575672949,12.23724811,188.2,188.13,2.6629]
[1735575673142,12.23724811,188.2,188.08,3.0827]
[1735575673345,12.23724811,188.2,188.12,2.663]
[1735575673553,12.23724811,188.2,188.08,6.5427]
[1735575673942,12.23724811,188.2,188.12,2.6629]
[1735575674442,12.23724811,188.2,188.11,2.6631]
[1735575674644,12.23724811,188.2,188.07,15.69724811]
[1735575674848,12.23724811,188.2,188.07,12.23724811]
[1735575675351,12.23724811,188.2,188.11,2.663]
[1735575676755,12.23724811,188.17,188.11,2.663]
[1735575676944,12.23724811,188.14,188.03,28.97352261]
[1735575677247,12.23724811,188.11,188.03,28.97352261]
[1735575677442,12.23724811,188.11,188.03,7.24338065]
[1735575677842,12.23724811,188.11,188.04,2.6641]
[1735575678048,12.23724811,188.11,188.03,7.24338065]
[1735575678247,5.0405,188.13,188.03,7.24338065]
[1735575678450,12.23724811,188.1,188.03,7.24338065]
[1735575679046,12.23724811,188.1,187.99,1.5103]
[1735575679246,12.23724811,188.1,187.98,8.72938065]
[1735575679444,12.23724811,188.07,187.98,8.72938065]
[1735575679744,12.23724811,188.1,187.98,7.24338065]
[1735575679944,3.46,188.09,187.98,8.80118065]
[1735575680151,3.46,188.09,187.98,12.26118065]
[1735575680352,3.46,188.09,187.98,5.0178]
[1735575681750,3.46,188.09,188.0,2.6647]
[1735575681948,3.46,188.09,187.98,5.0178]
[1735575682550,3.46,188.09,188.04,2.664]
[1735575683253,3.46,188.09,188.03,2.6643]
[1735575683450,12.23724811,188.07,187.98,3.46]
[1735575683652,12.23724811,188.07,187.96,50.18838985]
[1735575684348,12.23724811,188.07,188.0,2.6647]
[1735575685151,12.23724811,188.07,187.99,2.6648]
[1735575686251,12.23724811,188.07,188.0,2.6647]
[1735575686449,3.0743,188.08,187.97,12.23724811]
[1735575686653,3.0743,188.08,188.02,2.6644]
[1735575687350,12.23724811,188.07,187.97,12.23724811]
[1735575687550,12.23724811,188.07,187.96,50.18838985]
[1735575687955,12.23724811,188.07,187.99,2.6648]
[1735575689056,12.23724811,188.07,187.98,2.665]
[1735575689753,12.23724811,188.04,187.93,1.4981]
[1735575689957,3.46,188.03,187.93,1.4981]
[1735575691660,3.46,188.03,187.96,2.6652]
[1735575694357,7.84328836,188.01,187.96,2.6652]
[1735575695860,3.46,188.03,187.9,9.38538836]
[1735575695861,7.84328836,187.97,187.9,9.38538836]
[1735575696560,7.84328836,187.95,187.86,1.5164]
[1735575696857,7.84328836,187.95,187.87,7.84328836]
[1735575697664,7.84328836,187.95,187.9,2.6661]
[1735575698163,7.84328836,187.93,187.87,7.84328836]
[1735575698472,7.84328836,187.93,187.86,1.5164]
[1735575698473,12.26506694,187.96,187.89,5.72878189]
[1735575698862,12.26506694,187.93,187.86,2.6667]
[1735575699166,15.64506694,187.93,187.86,2.6667]
[1735575700768,15.64506694,187.93,187.83,50.21628736]
[1735575701869,15.64506694,187.93,187.85,2.6668]
[1735575703265,15.64506694,187.93,187.84,2.6669]
[1735575703462,15.64506694,187.93,187.83,50.21628736]
[1735575703863,15.64506694,187.93,187.83,52.88328736]
[1735575704064,15.64506694,187.93,187.83,50.21628736]
[1735575704670,15.64506694,187.93,187.85,2.6668]
[1735575704872,15.64506694,187.93,187.83,50.21628736]
[1735575705165,12.26506694,187.9,187.8,3.1077]
[1735575705764,12.26506694,187.9,187.82,2.6672]
[1735575705961,12.26506694,187.87,187.76,3.06460106]
[1735575706169,3.38,187.86,187.76,3.06460106]
[1735575706468,12.26506694,187.84,187.77,2.6678]
[1735575706970,12.26506694,187.84,187.75,2.6681]
[1735575707371,12.26506694,187.81,187.74,2.6684]
[1735575707675,15.64506694,187.81,187.74,2.6684]
[1735575707866,15.64506694,187.81,187.69,3.38]
[1735575708571,15.64506694,187.81,187.73,2.6684]
[1735575708872,15.64506694,187.81,187.68,12.26506694]
[1735575709465,12.26506694,187.78,187.67,1.5849]
[1735575709872,1.5157,187.77,187.66,1.5313]
[1735575710068,3.38,187.76,187.69,2.6691]
[1735575710262,12.26506694,187.75,187.66,1.5313]
[1735575710669,12.26506694,187.75,187.62,13.75746694]
[1735575711263,12.26506694,187.72,187.62,1.4924]
[1735575711468,3.38,187.71,187.62,1.4924]
[1735575712671,3.38,187.71,187.67,2.6694]
[1735575713071,1.5157,187.77,187.63,12.26506694]
[1735575713372,1.5157,187.77,187.64,3.38]
[1735575713373,3.38,187.75,187.64,3.38]
[1735575713577,1.5157,187.77,187.66,12.26506694]
[1735575713768,4.8957,187.77,187.72,2.6687]
[1735575713968,4.8957,187.77,187.66,12.26506694]
[1735575714164,1.5157,187.77,187.66,12.26506694]
[1735575714363,3.38,187.79,187.74,2.6683]
[1735575714563,3.38,187.79,187.66,12.26506694]
[1735575715166,3.38,187.79,187.69,2.669]
[1735575715371,3.38,187.79,187.66,12.26506694]
[1735575715868,12.26506694,187.78,187.66,12.26506694]
[1735575717375,12.26506694,187.78,187.71,2.6687]
[1735575717577,12.26506694,187.78,187.63,12.26506694]
[1735575717777,12.26506694,187.75,187.63,15.64506694]
[1735575717976,3.38,187.74,187.63,15.64506694]
[1735575718672,3.38,187.74,187.69,2.669]
[1735575720176,3.38,187.74,187.62,4.8724]
[1735575720479,12.26506694,187.72,187.62,1.4924]
[1735575721477,15.64506694,187.74,187.61,1.5078]
[1735575721478,12.26506694,187.69,187.61,1.5078]
[1735575721679,3.38,187.68,187.56,15.64506694]
[1735575722578,12.26506694,187.66,187.53,3.38]
[1735575722881,12.26506694,187.66,187.54,3.116]
[1735575723580,12.26506694,187.66,187.6,2.6704]
[1735575723983,12.26506694,187.66,187.54,3.116]
[1735575725378,3.32,187.68,187.56,12.26506694]
[1735575725680,3.32,187.68,187.59,12.26506694]
[1735575725878,3.32,187.68,187.67,2.6694]
[1735575726273,12.26506694,187.72,187.6,1.5841]
[1735575728178,12.26506694,187.69,187.64,2.6697]
[1735575728378,3.32,187.68,187.64,2.6697]
[1735575729473,3.32,187.68,187.58,3.32]
[1735575729877,4.8438,187.68,187.58,3.32]
[1735575730084,4.8438,187.68,187.56,12.26506694]
[1735575730586,4.8438,187.68,187.61,2.6701]
[1735575731386,1.5238,187.68,187.61,2.6701]
[1735575731588,3.32,187.67,187.61,2.6701]
[1735575731883,12.26506694,187.66,187.61,2.6701]
[1735575732394,12.26506694,187.66,187.53,12.26506694]
[1735575732684,12.26506694,187.63,187.51,3.06807937]
[1735575732884,12.26506694,187.6,187.51,3.06807937]
[1735575733088,12.26506694,187.6,187.5,7.24338065]
[1735575733497,3.32,187.59,187.54,2.6711]
[1735575733887,3.32,187.59,187.5,7.24338065]
[1735575733888,3.32,187.59,187.49,3.0313]
[1735575734085,3.32,187.59,187.54,2.6712]
[1735575735190,3.32,187.59,187.55,2.6711]
[1735575735994,3.32,187.59,187.54,2.6712]
[1735575736190,1.5911,187.62,187.51,12.26506694]
[1735575736388,4.8468,187.64,187.61,2.6702]
[1735575738599,3.32,187.64,187.63,2.67]
[1735575738790,1.5268,187.7,187.57,12.26506694]
[1735575738791,12.26506694,187.69,187.57,12.26506694]
[1735575738987,3.32,187.67,187.57,12.26506694]
[1735575739994,12.26506694,187.69,187.57,12.26506694]
[1735575739995,3.1317,187.7,187.58,6.4024]
[1735575740187,15.58506694,187.72,187.6,12.26506694]
[1735575740893,12.26506694,187.72,187.63,2.6699]
[1735575741094,12.26506694,187.72,187.6,12.26506694]
[1735575741488,15.58506694,187.72,187.68,2.6691]
[1735575742098,15.58506694,187.72,187.6,19.50844759]
[1735575742305,15.58506694,187.72,187.61,1.5645]
[1735575742493,15.58506694,187.76,187.63,12.26506694]
[1735575742693,15.58506694,187.76,187.63,15.58506694]
[1735575743807,15.58506694,187.76,187.65,28.97352261]
[1735575744102,12.26506694,187.73,187.65,28.97352261]
[1735575744605,12.26506694,187.73,187.66,6.80711422]
[1735575745407,12.26506694,187.73,187.66,2.6694]
[1735575745906,1.5639,187.72,187.67,2.6693]
[1735575746104,3.32,187.71,187.61,7.24338065]
[1735575746302,12.26506694,187.73,187.61,7.24338065]
[1735575746504,12.26506694,187.73,187.71,2.6688]
[1735575746704,3.32,187.74,187.71,2.6688]
[1735575747207,3.32,187.74,187.7,2.669]
[1735575747408,3.32,187.74,187.64,3.32]
[1735575748006,12.26506694,187.73,187.63,7.24338065]
[1735575748205,12.26506694,187.73,187.66,2.6695]
[1735575748402,12.26506694,187.7,187.63,7.24338065]
[1735575748606,12.26506694,187.7,187.61,28.97352261]
[1735575748817,3.32,187.69,187.61,28.97352261]
[1735575749510,15.58506694,187.73,187.61,28.97352261]
[1735575749709,15.58506694,187.73,187.58,13.64578065]
[1735575749909,15.58506694,187.73,187.62,12.26506694]
[1735575750417,15.58506694,187.73,187.65,2.6696]
[1735575750713,15.58506694,187.73,187.62,12.26506694]
[1735575751313,12.26506694,187.73,187.62,12.26506694]
[1735575751514,12.26506694,187.73,187.63,3.32]
[1735575752715,12.26506694,187.73,187.69,2.669]
[1735575753719,12.26506694,187.73,187.62,13.75156694]
[1735575754214,12.26506694,187.73,187.62,1.4865]
[1735575755018,12.26506694,187.73,187.61,3.32]
[1735575755621,12.26506694,187.67,187.6,2.6703]
[1735575755815,3.3,187.66,187.58,7.24338065]
[1735575756016,4.8681,187.66,187.58,7.24338065]
[1735575756411,12.26506694,187.64,187.58,7.24338065]
[1735575756817,12.26506694,187.64,187.53,28.97352261]
[1735575757119,12.26506694,187.64,187.58,2.6706]
[1735575758220,12.26506694,187.64,187.52,3.1269]
[1735575758221,12.26506694,187.64,187.59,2.6705]
[1735575758820,12.26506694,187.64,187.6,2.6704]
[1735575759016,12.26506694,187.64,187.52,3.1269]
[1735575759217,12.26506694,187.64,187.53,12.26506694]
[1735575759515,3.121,187.65,187.56,2.6709]
[1735575759715,3.121,187.65,187.53,12.26506694]
[1735575760118,3.121,187.65,187.63,2.67]
[1735575761016,3.121,187.65,187.61,2.6701]
[1735575761522,3.121,187.65,187.56,2.6709]
[1735575761818,4.8681,187.66,187.53,12.26506694]
[1735575763318,4.8681,187.66,187.54,3.3]
[1735575764026,12.26506694,187.61,187.52,3.1269]
[1735575764222,15.56506694,187.61,187.54,2.6712]
[1735575764721,15.56506694,187.61,187.48,1.5875]
[1735575764913,15.56506694,187.61,187.53,2.6713]
[1735575766027,15.56506694,187.61,187.48,1.5875]
[1735575766028,15.56506694,187.61,187.52,2.6715]
[1735575766318,12.26506694,187.58,187.52,2.6715]
[1735575766623,12.26506694,187.58,187.47,1.6169]
[1735575767415,12.26506694,187.58,187.53,2.6713]
[1735575769127,12.26506694,187.58,187.47,1.6169]
[1735575769522,3.3,187.61,187.48,12.26506694]
[1735575769523,15.56506694,187.61,187.48,12.26506694]
[1735575770427,15.56506694,187.61,187.44,4.8829]
[1735575770428,12.26506694,187.55,187.44,7.24338065]
[1735575770625,3.3,187.54,187.44,7.24338065]
[1735575771018,3.3,187.54,187.48,2.672]
[1735575771224,3.3,187.54,187.44,7.24338065]
[1735575771429,1.6173,187.53,187.44,7.24338065]
[1735575771730,1.6173,187.53,187.47,2.6721]
[1735575771931,1.6173,187.53,187.42,62.58766321]
[1735575773529,1.6173,187.53,187.49,2.6719]
[1735575773725,1.6173,187.53,187.42,62.58766321]
[1735575774030,3.3,187.56,187.45,12.26506694]
[1735575774229,3.3,187.56,187.48,2.6721]
[1735575774432,3.3,187.56,187.45,15.56506694]
[1735575774825,3.3,187.56,187.52,2.6714]
[1735575777433,3.3,187.6,187.48,12.26506694]
[1735575777931,3.3,187.6,187.54,2.6711]
[1735575778434,3.3,187.6,187.48,12.26506694]
[1735575779231,3.3,187.6,187.54,2.6711]
[1735575780228,3.3,187.6,187.48,12.26506694]
[1735575780436,12.26506694,187.58,187.52,2.6715]
[1735575780623,12.26506694,187.58,187.46,3.3]
[1735575780828,12.26506694,187.58,187.45,12.26506694]
[1735575781030,12.26506694,187.58,187.46,3.3]
[1735575781637,3.3,187.6,187.48,12.26506694]
[1735575781835,3.3,187.6,187.55,2.671]
[1735575782333,3.3,187.6,187.48,12.26506694]
[1735575783036,3.3,187.6,187.53,2.6713]
[1735575788531,3.3,187.6,187.48,12.26506694]
[1735575788737,12.26506694,187.58,187.45,12.26506694]
[1735575789732,12.26506694,187.58,187.5,2.6717]
[1735575790238,1.4854,187.57,187.5,2.6717]
[1735575790631,12.26506694,187.55,187.42,12.26506694]
[1735575790830,3.36,187.54,187.42,15.62506694]
[1735575791037,3.36,187.54,187.48,2.6721]
[1735575792241,3.36,187.54,187.41,3.1447]
[1735575792436,3.36,187.54,187.42,3.36]
[1735575793142,3.36,187.54,187.46,2.6723]
[1735575793338,3.36,187.54,187.42,3.36]
[1735575793641,3.36,187.54,187.44,12.26506694]
[1735575794031,3.36,187.54,187.47,2.6722]
[1735575794337,3.36,187.54,187.44,12.26506694]
[1735575794641,3.36,187.54,187.49,2.6718]
[1735575794935,3.36,187.54,187.44,12.26506694]
[1735575795442,3.36,187.54,187.48,2.6721]
[1735575795838,3.36,187.54,187.42,3.36]
[1735575796437,3.36,187.54,187.46,2.6723]
[1735575796641,12.26506694,187.52,187.39,3.0707013]
[1735575797242,12.26506694,187.52,187.43,2.6727]
[1735575798643,12.26506694,187.49,187.39,3.0707013]
[1735575798843,3.36,187.48,187.39,3.0707013]
[1735575799239,3.36,187.48,187.41,2.673]
[1735575799445,3.36,187.48,187.39,3.0707013]
[1735575800536,12.26506694,187.46,187.37,34.71966638]
[1735575800737,12.26506694,187.46,187.39,2.6733]
[1735575803946,12.26506694,187.46,187.36,3.1286]
[1735575804151,8.0478,187.48,187.42,2.6729]
[1735575804352,1.5974,187.48,187.37,12.26506694]
[1735575804548,15.62506694,187.49,187.37,12.26506694]
[1735575804847,15.62506694,187.49,187.43,2.6727]
[1735575808156,15.62506694,187.49,187.44,2.6727]
[1735575809056,15.62506694,187.49,187.41,2.673]
[1735575809258,1.6279,187.48,187.41,2.673]
[1735575810657,1.6279,187.48,187.4,2.6732]
[1735575810859,3.241,187.48,187.4,2.6732]
[1735575811453,3.241,187.48,187.41,2.6731]
[1735575812358,6.601,187.48,187.42,2.6729]
[1735575813856,12.26506694,187.49,187.44,2.6726]
[1735575814060,1.6214,187.55,187.37,12.26506694]
[1735575814061,3.36,187.5,187.37,12.26506694]
[1735575814957,3.32,187.5,187.37,12.26506694]
[1735575815153,3.32,187.5,187.45,2.6724]
[1735575815359,3.32,187.5,187.37,12.26506694]
[1735575815562,3.32,187.51,187.4,12.26506694]
[1735575815757,3.32,187.51,187.46,2.6723]
[1735575817562,3.32,187.51,187.41,1.614]
[1735575817563,3.32,187.51,187.43,12.26506694]
[1735575817756,2.9937,187.54,187.41,1.614]
[1735575817955,3.32,187.53,187.41,13.87906694]
[1735575818759,3.32,187.53,187.46,2.6723]
[1735575819966,3.32,187.53,187.41,13.87906694]
[1735575820168,12.26506694,187.56,187.44,12.26506694]
[1735575820374,14.91728,187.58,187.45,6.3331]
[1735575820668,3.32,187.57,187.51,2.6716]
[1735575821363,12.26506694,187.56,187.48,2.6721]
[1735575821564,12.26506694,187.56,187.45,3.0131]
[1735575821768,13.84656694,187.56,187.45,3.0131]
[1735575822270,13.84656694,187.56,187.47,2.6722]
[1735575822467,13.84656694,187.56,187.45,3.0131]
[1735575822768,15.42786694,187.56,187.45,3.0131]
[1735575822964,15.42786694,187.56,187.46,2.6723]
[1735575823165,15.42786694,187.56,187.45,3.0131]
[1735575823569,15.42786694,187.56,187.45,5.6855]
[1735575825473,15.42786694,187.56,187.45,3.0131]
[1735575825766,15.42786694,187.56,187.46,2.6724]
[1735575826269,7.88462734,187.51,187.46,2.6724]
[1735575826459,7.88462734,187.51,187.45,3.0131]
[1735575826666,3.32,187.52,187.49,2.6719]
[1735575826864,7.88462734,187.53,187.46,7.88462734]
[1735575827169,7.88462734,187.53,187.5,2.6717]
[1735575828375,7.88462734,187.53,187.46,7.88462734]
[1735575828870,7.88462734,187.53,187.5,2.6717]
[1735575831870,3.32,187.55,187.5,2.6717]
[1735575832072,7.88462734,187.54,187.5,2.6717]
[1735575833061,7.88462734,187.54,187.48,7.88462734]
[1735575833370,22.80190734,187.58,187.5,7.88462734]
[1735575833570,22.80190734,187.58,187.52,2.6715]
[1735575833872,22.80190734,187.58,187.5,7.88462734]
[1735575834263,7.88462734,187.56,187.53,2.6713]
[1735575834464,7.88462734,187.56,187.48,7.88462734]
[1735575834868,7.88462734,187.56,187.51,2.6716]
[1735575835669,7.88462734,187.54,187.5,2.6718]
[1735575837774,7.88462734,187.52,187.49,2.6719]
[1735575838674,7.88462734,187.52,187.46,7.88462734]
[1735575838975,7.88462734,187.5,187.42,7.88462734]
[1735575839372,7.88462734,187.5,187.45,2.6724]
[1735575839373,11.20462734,187.5,187.45,2.6724]
[1735575840377,11.20462734,187.5,187.46,2.6724]
[1735575840679,3.32,187.5,187.44,7.88462734]
[1735575840873,3.32,187.5,187.48,2.672]
[1735575841074,7.88462734,187.52,187.48,2.672]
[1735575841276,7.88462734,187.52,187.49,2.6719]
[1735575841576,7.88462734,187.52,187.46,7.88462734]
[1735575842576,7.88462734,187.52,187.47,2.6721]
[1735575844778,7.88462734,187.52,187.46,2.6723]
[1735575845075,7.88462734,187.52,187.45,7.88462734]
[1735575846078,7.88462734,187.52,187.47,2.6721]
[1735575847177,7.88462734,187.5,187.43,7.88462734]
[1735575848578,3.28,187.49,187.43,7.88462734]
[1735575849179,7.88462734,187.48,187.41,7.88462734]
[1735575849383,7.88462734,187.46,187.38,7.24338065]
[1735575849677,7.88462734,187.46,187.42,2.6729]
[1735575849877,7.88462734,187.48,187.41,7.88462734]
[1735575850277,7.88462734,187.48,187.44,2.6726]
[1735575851191,7.88462734,187.48,187.45,2.6725]
[1735575851492,3.28,187.49,187.43,7.88462734]
[1735575851887,3.28,187.49,187.44,2.6726]
[1735575852082,3.28,187.49,187.43,7.88462734]
[1735575852689,7.88462734,187.48,187.45,2.6724]
[1735575853890,7.88462734,187.48,187.43,7.88462734]
[1735575854084,7.88462734,187.48,187.43,2.6727]
[1735575854391,7.88462734,187.48,187.41,7.88462734]
[1735575854587,7.88462734,187.48,187.42,2.6729]
[1735575855296,7.88462734,187.46,187.42,2.6729]
[1735575856992,7.88462734,187.46,187.43,2.6728]
[1735575857592,7.88462734,187.47,187.44,2.6726]
[1735575858191,7.88462734,187.47,187.45,2.6725]
[1735575858388,7.88462734,187.47,187.35,38.00695036]
[1735575858695,7.88462734,187.45,187.39,7.88462734]
[1735575858896,7.88462734,187.47,187.43,2.6728]
[1735575859424,7.88462734,187.47,187.4,7.88462734]
[1735575860115,7.88462734,187.47,187.44,2.6726]
[1735575860605,3.28,187.48,187.42,7.88462734]
[1735575860810,11.16462734,187.49,187.45,2.6724]
[1735575861512,7.88462734,187.47,187.45,2.6724]
[1735575862865,11.16462734,187.49,187.45,2.6724]
[1735575863526,7.88462734,187.49,187.45,2.6724]
[1735575864329,7.88462734,187.49,187.42,7.88462734]
[1735575864525,7.88462734,187.49,187.46,2.6722]
[1735575868829,7.88462734,187.51,187.44,7.88462734]
[1735575869036,7.88462734,187.51,187.47,2.6721]
[1735575869224,7.88462734,187.51,187.44,7.88462734]
[1735575869822,7.88462734,187.51,187.46,2.6724]
[1735575870031,7.88462734,187.49,187.42,7.88462734]
[1735575871509,7.88462734,187.49,187.45,2.6725]
[1735575876217,7.88462734,187.49,187.42,7.88462734]
[1735575876414,7.88462734,187.49,187.44,2.6726]
[1735575877215,7.88462734,187.49,187.45,2.6725]
[1735575879117,7.88462734,187.49,187.44,2.6726]
[1735575879317,7.88462734,187.47,187.44,2.6726]
[1735575880319,7.88462734,187.47,187.43,2.6728]
[1735575880813,11.10462734,187.47,187.42,2.6729]
[1735575882920,3.22,187.5,187.42,7.88462734]
[1735575883124,11.10462734,187.5,187.42,7.88462734]
[1735575883618,11.10462734,187.5,187.44,2.6726]
[1735575883819,11.10462734,187.5,187.42,7.88462734]
[1735575884217,11.10462734,187.5,187.38,28.97352261]
[1735575884218,7.88462734,187.44,187.38,28.97352261]
[1735575884519,20.6902,187.54,187.38,28.97352261]
[1735575884520,7.88462734,187.39,187.38,28.97352261]
[1735575884716,3.22,187.42,187.38,28.97352261]
[1735575884916,7.88462734,187.4,187.38,28.97352261]
[1735575885524,7.88462734,187.4,187.35,7.88462734]
[1735575886016,8.26828114,187.51,187.35,7.88462734]
[1735575886219,7.88462734,187.44,187.31,45.83209604]
[1735575886418,7.88462734,187.44,187.38,7.88462734]
[1735575886624,59.00650304,187.52,187.42,7.88462734]
[1735575886824,7.88462734,187.49,187.42,7.88462734]
[1735575887216,7.88462734,187.49,187.43,2.6728]
[1735575887523,7.88462734,187.47,187.4,7.88462734]
[1735575887716,7.88462734,187.45,187.4,7.88462734]
[1735575888326,7.88462734,187.45,187.4,10.55772734]
[1735575888528,7.88462734,187.45,187.4,2.6731]
[1735575889828,7.88462734,187.48,187.41,7.88462734]
[1735575891630,7.88462734,187.48,187.44,2.6726]
[1735575892022,7.88462734,187.48,187.41,7.88462734]
[1735575893526,7.88462734,187.48,187.43,2.6728]
[1735575896834,7.88462734,187.46,187.36,12.07318065]
[1735575897026,7.88462734,187.46,187.38,7.88462734]
[1735575897226,3.22,187.45,187.38,7.88462734]
[1735575897628,3.22,187.45,187.4,2.6731]
[1735575897824,11.10462734,187.45,187.38,7.88462734]
[1735575898634,11.10462734,187.45,187.4,2.6731]
[1735575901132,3.22,187.45,187.4,7.88462734]
[1735575901333,7.88462734,187.47,187.4,7.88462734]
[1735575901736,7.88462734,187.47,187.43,2.6727]
[1735575902436,7.88462734,187.47,187.4,7.88462734]
[1735575902833,3.22,187.52,187.47,2.6722]
[1735575903032,7.88462734,187.51,187.47,2.6722]
[1735575903228,3.22,187.52,187.47,2.6722]
[1735575903436,7.88462734,187.51,187.47,2.6722]
[1735575904737,7.88462734,187.5,187.46,2.6723]
[1735575905539,7.88462734,187.48,187.42,7.88462734]
[1735575906235,7.88462734,187.5,187.42,7.88462734]
[1735575908232,3.24,187.53,187.44,7.88462734]
[1735575908233,7.88462734,187.52,187.44,7.88462734]
[1735575909661,57.9284805,187.57,187.41,3.22]
[1735575909662,57.9284805,187.57,187.46,7.88462734]
[1735575909830,7.88462734,187.56,187.48,7.88462734]
[1735575910333,7.88462734,187.56,187.54,2.6712]
[1735575910641,7.88462734,187.56,187.5,7.88462734]
[1735575910839,22.80190734,187.58,187.52,7.88462734]
[1735575911135,14.91728,187.58,187.57,2.6708]